bitfinex-derivatives/quotes_SOLF0:USTF0_20241230
["timestamp","ask_amount","ask_price","bid_price","bid_amount"]
[1735583543748,3.72,194.1,194.0,20.41601504]
[1735583544344,3.72,194.1,194.01,1.6024]
[1735583544749,3.72,194.1,194.02,1.5319]
[1735583545044,3.72,194.1,194.04,2.5791]
[1735583545247,3.72,194.15,194.03,22.00811504]
[1735583546046,3.72,194.15,194.03,1.5921]
[1735583546241,3.72,194.15,194.05,2.579]
[1735583546449,3.72,194.15,194.02,1.5319]
[1735583547544,3.72,194.15,194.05,2.5789]
[1735583547849,3.72,194.15,194.01,1.6024]
[1735583548050,20.41601504,194.13,193.99,1.5921]
[1735583548750,20.41601504,194.13,194.01,2.5796]
[1735583549346,20.41601504,194.1,193.99,2.5798]
[1735583549542,20.41601504,194.2,193.95,3.0416]
[1735583549543,20.41601504,194.07,193.95,3.0416]
[1735583549742,3.72,194.06,193.95,1.4838]
[1735583549947,3.72,194.06,193.97,2.58]
[1735583550147,3.72,194.06,193.95,1.4838]
[1735583551456,3.72,194.06,193.99,2.5798]
[1735583551948,3.72,194.06,193.95,1.4838]
[1735583552249,3.72,194.06,193.91,1.5578]
[1735583552948,3.72,194.06,193.96,2.5801]
[1735583553447,3.72,194.06,193.96,13.3301]
[1735583553948,3.72,194.05,193.96,10.75]
[1735583554354,3.72,194.05,193.96,13.3302]
[1735583555051,3.72,194.05,193.96,10.75]
[1735583556749,20.41601504,194.04,193.96,10.75]
[1735583560059,20.41601504,193.98,193.96,10.75]
[1735583560359,3.72,193.97,193.96,6.3222]
[1735583560955,3.72,193.97,193.86,2.5815]
[1735583561160,3.72,193.97,193.88,2.5812]
[1735583561756,20.41601504,193.98,193.82,76.29009851]
[1735583562061,3.72,193.97,193.85,20.41601504]
[1735583562262,3.72,193.96,193.85,20.41601504]
[1735583562451,3.72,193.96,193.86,1.5172]
[1735583562962,3.72,193.96,193.91,2.5809]
[1735583563764,3.72,193.97,193.93,2.5806]
[1735583564158,20.41601504,194.04,193.88,20.41601504]
[1735583564461,3.72,194.03,193.91,20.41601504]
[1735583564671,3.72,194.02,193.95,2.5804]
[1735583564963,3.72,194.03,193.92,3.1726]
[1735583565359,3.72,194.03,193.96,2.5802]
[1735583567165,3.72,194.03,193.92,3.1726]
[1735583567365,3.72,194.03,193.92,1.5711]
[1735583567660,20.41601504,194.01,193.87,1.6054]
[1735583568367,3.72,194.0,193.87,1.6054]
[1735583568864,3.72,194.0,193.91,2.5809]
[1735583569265,3.72,194.0,193.92,2.5808]
[1735583569561,3.72,194.0,193.87,1.6054]
[1735583569965,3.72,194.0,193.91,2.5809]
[1735583570561,20.41601504,193.98,193.88,2.5813]
[1735583571165,20.41601504,193.98,193.87,1.6054]
[1735583571858,20.41601504,193.98,193.86,1.5172]
[1735583572466,20.41601504,193.95,193.86,1.5172]
[1735583572766,3.72,193.94,193.86,1.5172]
[1735583573671,20.41601504,193.98,193.86,1.5172]
[1735583573873,3.72,193.97,193.86,1.5172]
[1735583574971,3.72,193.97,193.9,2.581]
[1735583575169,40.83203008,193.91,193.82,2.19]
[1735583575372,20.41601504,193.83,193.74,6.85949836]
[1735583575569,20.41601504,193.77,193.73,20.57849509]
[1735583575767,20.41601504,193.73,193.71,82.31398038]
[1735583575968,3.72,193.72,193.71,32.53109935]
[1735583576164,3.72,193.72,193.62,3.1882]
[1735583576373,20.41601504,193.69,193.62,3.1882]
[1735583577376,3.72,193.68,193.62,3.1882]
[1735583577677,3.72,193.68,193.61,2.5849]
[1735583578380,3.72,193.7,193.66,2.5842]
[1735583578772,3.72,193.7,193.6,1.5905]
[1735583579174,3.72,193.7,193.65,2.5843]
[1735583579375,3.72,193.7,193.6,1.5905]
[1735583580680,3.72,193.7,193.66,2.5842]
[1735583580982,3.7,193.7,193.66,2.5842]
[1735583581378,3.7,193.7,193.6,1.5905]
[1735583583079,20.41601504,193.76,193.69,2.5838]
[1735583583280,20.41601504,193.79,193.62,24.11601504]
[1735583583481,10.82597085,193.81,193.65,20.41601504]
[1735583583680,3.7,193.81,193.66,1.5319]
[1735583584484,3.7,193.81,193.7,2.5836]
[1735583584785,3.7,193.81,193.71,1.582]
[1735583584981,3.7,193.81,193.72,1.524]
[1735583585980,20.41601504,193.85,193.72,1.524]
[1735583586187,31.94956974,193.89,193.74,20.41601504]
[1735583586385,3.7,193.89,193.85,2.5816]
[1735583586583,3.7,193.89,193.75,1.5713]
[1735583586886,3.7,193.89,193.83,2.5819]
[1735583587488,3.7,193.89,193.75,1.5713]
[1735583589488,3.7,193.89,193.79,2.5825]
[1735583589691,3.7,193.89,193.75,1.5713]
[1735583590085,48.66558478,193.94,193.77,20.41601504]
[1735583590281,3.7,193.93,193.77,20.41601504]
[1735583590687,3.7,193.93,193.75,1.5713]
[1735583590886,20.41601504,193.9,193.75,1.5713]
[1735583591088,20.41601504,193.9,193.79,2.5824]
[1735583591291,20.41601504,193.9,193.75,1.5713]
[1735583591992,20.41601504,193.9,193.82,2.582]
[1735583592396,20.41601504,193.9,193.75,1.5713]
[1735583594091,20.41601504,193.9,193.83,2.582]
[1735583595194,20.41601504,193.9,193.75,1.5713]
[1735583595394,20.41601504,193.9,193.82,2.5821]
[1735583596894,20.41601504,193.9,193.83,2.582]
[1735583597901,20.41601504,193.9,193.75,1.5713]
[1735583599702,20.41601504,193.9,193.81,2.5821]
[1735583600401,20.41601504,193.9,193.82,2.582]
[1735583600800,3.7,193.89,193.84,2.5818]
[1735583601004,31.94956974,193.92,193.78,20.41601504]
[1735583601398,3.7,193.92,193.89,2.5811]
[1735583601799,3.7,193.92,193.78,24.11601504]
[1735583602106,28.24956974,193.93,193.78,24.11601504]
[1735583602407,28.24956974,193.96,193.95,2.5804]
[1735583603203,3.7,193.99,193.96,2.5801]
[1735583603403,3.7,193.99,193.88,3.1369]
[1735583603597,7.12597085,194.02,193.99,2.5798]
[1735583603797,7.12597085,194.02,193.92,3.7]
[1735583604001,7.12597085,194.02,193.93,1.5621]
[1735583604197,7.12597085,194.04,194.0,2.5797]
[1735583604603,7.12597085,194.04,193.93,1.5621]
[1735583604902,7.12597085,194.04,193.93,21.97811504]
[1735583605095,7.12597085,194.04,194.02,2.5794]
[1735583605299,3.7,194.08,194.02,2.5794]
[1735583605999,31.94956974,194.09,194.02,2.5794]
[1735583606307,3.7,194.09,193.93,21.97811504]
[1735583606506,20.41601504,194.1,194.04,2.5792]
[1735583606701,3.7,194.09,194.04,2.5792]
[1735583606909,7.12597085,194.12,194.07,2.5788]
[1735583607207,10.82597085,194.12,193.98,3.7]
[1735583607399,7.12597085,194.12,193.99,3.0567]
[1735583607604,3.7,194.11,193.99,3.0567]
[1735583608202,3.7,194.11,194.09,2.5785]
[1735583610005,20.41601504,194.16,194.09,2.5785]
[1735583610206,3.7,194.15,194.09,2.5784]
[1735583610512,20.41601504,194.13,193.99,3.0567]
[1735583611408,20.41601504,194.13,194.03,2.5793]
[1735583611611,20.41601504,194.13,193.99,3.0567]
[1735583612008,20.41601504,194.16,194.11,2.5782]
[1735583612311,20.41601504,194.16,193.99,23.47271504]
[1735583612614,20.41601504,194.16,194.11,2.5782]
[1735583613011,20.41601504,194.16,194.04,2.5792]
[1735583613209,20.41601504,194.16,194.05,1.6052]
[1735583614114,20.41601504,194.16,194.08,2.5785]
[1735583614311,20.41601504,194.16,194.05,1.6052]
[1735583614517,20.41601504,194.13,193.99,3.0567]
[1735583614818,3.7,194.12,193.99,3.0567]
[1735583615611,3.7,194.12,194.07,2.5787]
[1735583615810,3.7,194.12,193.99,23.47271504]
[1735583616521,20.41601504,194.16,193.99,23.47271504]
[1735583618725,3.7,194.17,194.02,20.41601504]
[1735583619114,3.7,194.17,194.06,2.5789]
[1735583619422,20.41601504,194.19,194.04,3.7]
[1735583619614,3.7,194.18,194.13,2.578]
[1735583620220,24.11601504,194.19,194.13,2.578]
[1735583620414,24.11601504,194.19,194.14,2.5778]
[1735583621121,24.11601504,194.19,194.05,1.4815]
[1735583621422,28.24956974,194.2,194.05,21.89751504]
[1735583621622,7.12597085,194.2,194.18,2.5773]
[1735583621812,7.12597085,194.2,194.1,3.47864224]
[1735583622012,7.12597085,194.2,194.11,3.0655]
[1735583622216,7.12597085,194.2,194.11,23.48151504]
[1735583622724,20.89416804,194.22,194.11,23.48151504]
[1735583623021,20.89416804,194.22,194.11,3.0655]
[1735583623218,2.577,194.21,194.16,2.5775]
[1735583623817,2.577,194.21,194.17,2.5774]
[1735583624118,41.31018308,194.22,194.11,1.536]
[1735583625127,2.5773,194.18,194.11,1.536]
[1735583625321,2.5773,194.18,194.13,2.5779]
[1735583625622,2.5773,194.18,194.11,1.536]
[1735583626018,2.5772,194.2,194.11,1.536]
[1735583626213,41.31018308,194.22,194.11,1.536]
[1735583626419,41.31018308,194.22,194.13,2.578]
[1735583626622,2.5776,194.17,194.07,5.2807]
[1735583626917,3.7,194.19,194.16,2.5775]
[1735583627119,23.47096804,194.22,194.08,20.41601504]
[1735583627315,20.89416804,194.22,194.08,20.41601504]
[1735583627622,41.31018308,194.22,194.08,20.41601504]
[1735583628325,2.5774,194.18,194.08,20.41601504]
[1735583629223,2.5774,194.18,194.07,5.2807]
[1735583629427,41.31018308,194.22,194.07,5.2807]
[1735583629724,2.5772,194.2,194.07,5.2807]
[1735583629914,41.31018308,194.22,194.08,20.41601504]
[1735583629915,20.89416804,194.22,194.08,20.41601504]
[1735583630112,2.577,194.21,194.08,20.41601504]
[1735583630522,2.577,194.21,194.17,2.5774]
[1735583632327,28.02013889,194.22,194.08,20.41601504]
[1735583632723,28.02013889,194.22,194.11,20.41601504]
[1735583633528,28.02013889,194.22,194.19,2.5771]
[1735583633823,20.89416804,194.22,194.11,20.41601504]
[1735583634416,20.89416804,194.22,194.21,2.5769]
[1735583634616,20.89416804,194.22,194.14,3.7]
[1735583635721,20.89416804,194.22,194.21,2.5769]
[1735583635928,49.14373778,194.22,194.21,2.5769]
[1735583637222,62.86568248,194.22,194.17,20.41601504]
[1735583637728,90.94570978,194.22,194.17,20.41601504]
[1735583637930,90.94570978,194.22,194.21,2.5769]
[1735583638831,20.89416804,194.22,194.21,2.5769]
[1735583639427,20.89416804,194.22,194.15,17.17499184]
[1735583640232,20.89416804,194.22,194.21,2.5769]
[1735583642329,20.89416804,194.22,194.15,4.4353]
[1735583643128,20.89416804,194.22,194.21,2.5769]
[1735583644427,18.46216804,194.22,194.21,2.5769]
[1735583644829,1.97396804,194.22,194.21,2.5769]
[1735583645134,2.5756,194.31,194.27,2.5761]
[1735583645633,213.6752737,194.32,194.23,12.73969184]
[1735583645829,286.50596494,194.34,194.23,12.73969184]
[1735583646025,284.90036494,194.34,194.26,12.73969184]
[1735583646229,284.90036494,194.34,194.33,2.5753]
[1735583646533,277.60856494,194.34,194.33,2.5753]
[1735583647131,277.60856494,194.34,194.32,15.31509184]
[1735583647336,14.34529184,194.42,194.29,12.73969184]
[1735583647538,1.4916,194.39,194.29,12.73969184]
[1735583648036,14.23129184,194.39,194.26,16.41969184]
[1735583648237,14.23129184,194.39,194.26,12.73969184]
[1735583648433,2.5748,194.37,194.3,2.5757]
[1735583648640,2.5748,194.37,194.27,3.68]
[1735583648838,2.5747,194.38,194.33,2.5753]
[1735583649236,1.4916,194.39,194.33,2.5753]
[1735583649733,1.4916,194.39,194.35,2.5751]
[1735583649933,1.4916,194.39,194.29,16.41969184]
[1735583650128,4.0661,194.39,194.34,2.5752]
[1735583650529,1.4916,194.39,194.29,16.41969184]
[1735583651139,4.0662,194.39,194.29,16.41969184]
[1735583651436,1.4916,194.39,194.29,12.73969184]
[1735583651941,1.4916,194.39,194.32,12.73969184]
[1735583652538,18.02529184,194.42,194.32,12.73969184]
[1735583652735,2.5743,194.41,194.3,12.73969184]
[1735583654036,2.5745,194.4,194.33,2.5753]
[1735583654236,12.73969184,194.39,194.27,16.41969184]
[1735583654433,15.86499184,194.39,194.27,16.41969184]
[1735583654638,2.5751,194.35,194.3,2.5756]
[1735583654943,12.73969184,194.36,194.24,12.73969184]
[1735583655137,12.73969184,194.33,194.26,2.5762]
[1735583655440,12.73969184,194.33,194.23,3.68]
[1735583655639,2.5757,194.31,194.22,1.5206]
[1735583656035,2.5759,194.29,194.25,2.5764]
[1735583656231,12.73969184,194.33,194.25,2.5764]
[1735583656232,1.4861,194.32,194.25,2.5764]
[1735583656431,1.4861,194.32,194.22,1.5206]
[1735583657834,1.4861,194.32,194.28,2.5759]
[1735583658036,1.4861,194.32,194.22,1.5206]
[1735583658543,1.4861,194.32,194.29,2.5758]
[1735583658839,2.5749,194.37,194.32,2.5754]
[1735583659043,19.54499184,194.39,194.27,16.41969184]
[1735583659234,12.73969184,194.36,194.22,1.5206]
[1735583659434,2.5756,194.31,194.26,2.5762]
[1735583659839,2.5756,194.31,194.22,1.5206]
[1735583660042,12.73969184,194.33,194.22,1.5206]
[1735583660238,1.5013,194.35,194.22,1.5206]
[1735583660443,1.5013,194.35,194.31,2.5755]
[1735583660644,19.54499184,194.39,194.27,12.73969184]
[1735583661040,2.5749,194.36,194.27,12.73969184]
[1735583661543,2.5751,194.35,194.3,2.5756]
[1735583662537,2.5748,194.37,194.3,2.5756]
[1735583662939,15.31519184,194.33,194.26,2.5763]
[1735583663140,6.8053,194.39,194.17,12.73969184]
[1735583663141,12.73969184,194.3,194.17,12.73969184]
[1735583663339,16.41969184,194.3,194.16,3.68]
[1735583663540,3.079,194.29,194.16,3.68]
[1735583663748,3.079,194.29,194.18,16.63435071]
[1735583664039,3.68,194.35,194.21,12.73969184]
[1735583664237,14.35469184,194.36,194.22,3.68]
[1735583664435,18.03469184,194.36,194.31,2.5756]
[1735583664635,18.03469184,194.36,194.24,12.73969184]
[1735583664636,5.295,194.36,194.24,12.73969184]
[1735583665849,1.615,194.36,194.24,12.73969184]
[1735583666445,1.615,194.36,194.23,20.36610756]
[1735583667948,1.615,194.36,194.23,24.04610756]
[1735583668247,1.615,194.36,194.3,2.5757]
[1735583668248,2.5752,194.35,194.3,2.5757]
[1735583669746,2.5752,194.35,194.31,2.5756]
[1735583670853,1.615,194.36,194.23,24.04610756]
[1735583671053,6.8634,194.39,194.23,24.04610756]
[1735583671248,5.2953,194.39,194.23,24.04610756]
[1735583671450,1.6153,194.39,194.23,24.04610756]
[1735583671655,1.6153,194.39,194.27,20.36610756]
[1735583671849,1.572,194.42,194.28,1.5506]
[1735583672056,1.572,194.42,194.29,3.68]
[1735583672245,1.572,194.42,194.29,5.1803]
[1735583673546,2.5746,194.39,194.34,2.5752]
[1735583673947,2.5744,194.4,194.35,2.575]
[1735583674148,2.5744,194.4,194.29,5.1803]
[1735583674857,1.572,194.42,194.29,5.1803]
[1735583675356,2.5747,194.38,194.29,5.1803]
[1735583676058,2.5746,194.39,194.34,2.5752]
[1735583676362,3.68,194.38,194.24,3.68]
[1735583676552,2.5751,194.35,194.31,2.5756]
[1735583677056,5.2502,194.38,194.24,3.68]
[1735583677659,1.5885,194.37,194.24,3.68]
[1735583678056,2.5753,194.34,194.27,2.5761]
[1735583678357,20.36610756,194.35,194.21,3.13]
[1735583678555,1.4652,194.34,194.21,3.13]
[1735583678750,20.36610756,194.32,194.2,0.25114]
[1735583678955,3.68,194.31,194.2,0.25114]
[1735583679360,3.68,194.31,194.22,2.5768]
[1735583679361,2.5761,194.28,194.22,2.5768]
[1735583679559,2.5761,194.28,194.2,0.25114]
[1735583679764,1.5877,194.3,194.2,0.25114]
[1735583679964,4.1634,194.3,194.25,2.5764]
[1735583680261,4.1634,194.3,194.2,0.25114]
[1735583680262,3.68,194.31,194.2,0.25114]
[1735583680565,3.68,194.31,194.27,2.576]
[1735583680863,32.19952017,194.32,194.27,2.576]
[1735583681367,3.68,194.32,194.28,2.576]
[1735583682162,3.68,194.32,194.2,20.61724756]
[1735583682561,6.2555,194.32,194.2,20.61724756]
[1735583683565,6.2555,194.32,194.26,2.5762]
[1735583683768,3.68,194.32,194.26,2.5762]
[1735583683966,2.5756,194.31,194.26,2.5762]
[1735583684962,3.68,194.32,194.23,20.36610756]
[1735583685161,1.4652,194.34,194.21,3.68]
[1735583685162,1.4652,194.34,194.26,20.36610756]
[1735583685467,12.40118232,194.37,194.26,20.36610756]
[1735583686168,5.2685,194.37,194.26,20.36610756]
[1735583686366,7.8433,194.37,194.32,2.5754]
[1735583686666,3.68,194.37,194.26,20.36610756]
[1735583687266,3.68,194.37,194.24,1.5974]
[1735583687267,8.59628232,194.39,194.29,20.36610756]
[1735583687471,7.13268232,194.39,194.29,20.36610756]
[1735583687770,2.5745,194.4,194.35,2.575]
[1735583687965,12.40538232,194.41,194.35,2.575]
[1735583688165,2.5746,194.39,194.34,2.5752]
[1735583688370,2.5746,194.39,194.29,12.72460814]
[1735583688766,2.5746,194.39,194.34,2.5751]
[1735583689570,2.5746,194.39,194.29,12.72460814]
[1735583689864,5.2727,194.41,194.29,12.72460814]
[1735583690073,7.13268232,194.42,194.32,12.72460814]
[1735583690273,21.38683785,194.43,194.38,2.5747]
[1735583690274,32.19952017,194.43,194.38,2.5747]
[1735583690574,2.5743,194.42,194.32,12.72460814]
[1735583691165,2.5743,194.42,194.37,2.5747]
[1735583691767,12.72460814,194.42,194.29,12.72460814]
[1735583692377,2.5746,194.39,194.34,2.5751]
[1735583692676,3.68,194.43,194.29,12.72460814]
[1735583692877,2.5745,194.4,194.3,1.5492]
[1735583693082,3.68,194.43,194.3,1.5492]
[1735583693473,2.5744,194.41,194.3,1.5492]
[1735583694276,12.72460814,194.42,194.3,1.5492]
[1735583694978,12.72460814,194.42,194.33,2.5753]
[1735583695580,2.5748,194.38,194.3,1.5492]
[1735583695776,2.5748,194.38,194.34,2.5751]
[1735583696578,2.5748,194.38,194.33,2.5753]
[1735583696777,2.5748,194.38,194.3,1.5492]
[1735583697173,2.5748,194.38,194.29,12.72460814]
[1735583697377,3.68,194.37,194.26,12.72460814]
[1735583697576,16.40460814,194.36,194.23,14.29560814]
[1735583697772,16.40460814,194.36,194.17,6.9658612]
[1735583697773,12.72460814,194.33,194.2,12.72460814]
[1735583698576,12.72460814,194.33,194.23,2.5766]
[1735583698577,2.576,194.29,194.23,2.5766]
[1735583698770,6.256,194.29,194.23,2.5766]
[1735583699176,6.256,194.29,194.24,2.5765]
[1735583699380,2.5761,194.28,194.2,12.72460814]
[1735583699774,3.68,194.29,194.23,2.5766]
[1735583699976,2.5762,194.27,194.18,3.89465887]
[1735583700176,3.68,194.29,194.18,3.89465887]
[1735583700372,4.6282,194.28,194.22,2.5768]
[1735583700984,2.5762,194.27,194.22,2.5768]
[1735583701380,2.5762,194.27,194.23,2.5766]
[1735583701780,2.5762,194.27,194.18,3.89465887]
[1735583701981,12.72460814,194.33,194.2,12.72460814]
[1735583702183,3.66,194.3,194.23,12.72460814]
[1735583702375,3.66,194.33,194.23,12.72460814]
[1735583702775,3.66,194.33,194.26,12.72460814]
[1735583703085,3.66,194.33,194.29,2.5758]
[1735583703781,1.5736,194.36,194.26,12.72460814]
[1735583704190,1.5984,194.39,194.35,2.5751]
[1735583704386,5.2584,194.39,194.35,2.5751]
[1735583704582,5.2584,194.39,194.29,12.72460814]
[1735583705181,8.66748232,194.41,194.35,12.72460814]
[1735583705182,7.13268232,194.41,194.35,12.72460814]
[1735583705386,7.13268232,194.41,194.4,2.5744]
[1735583705591,28.51952017,194.45,194.4,2.5744]
[1735583706181,12.72460814,194.45,194.35,12.72460814]
[1735583706388,12.72460814,194.45,194.33,1.4893]
[1735583706988,2.5739,194.44,194.33,1.4893]
[1735583707285,6.2336,194.46,194.33,1.4893]
[1735583707785,3.66,194.47,194.33,1.4893]
[1735583707980,12.72460814,194.45,194.33,1.4893]
[1735583708387,12.72460814,194.42,194.32,16.38460814]
[1735583708589,2.5743,194.41,194.35,2.575]
[1735583708782,6.2343,194.41,194.35,2.575]
[1735583708986,6.2343,194.41,194.32,12.72460814]
[1735583709295,3.66,194.41,194.29,12.72460814]
[1735583710589,3.66,194.41,194.32,12.72460814]
[1735583710790,6.2341,194.43,194.32,12.72460814]
[1735583710997,3.66,194.43,194.32,12.72460814]
[1735583711198,2.5739,194.45,194.39,2.5744]
[1735583711596,3.66,194.46,194.39,2.5744]
[1735583711792,3.66,194.46,194.32,12.72460814]
[1735583712094,3.66,194.46,194.35,12.72460814]
[1735583713598,2.5738,194.45,194.4,2.5744]
[1735583713899,3.66,194.47,194.35,12.72460814]
[1735583714100,3.66,194.47,194.36,2.9879]
[1735583714491,3.66,194.47,194.42,2.574]
[1735583714697,3.66,194.47,194.36,2.9879]
[1735583714891,12.72460814,194.43,194.32,12.72460814]
[1735583715099,12.72460814,194.4,194.29,3.0793]
[1735583715504,3.66,194.41,194.29,3.0793]
[1735583715698,3.66,194.41,194.31,12.72460814]
[1735583716598,3.66,194.41,194.37,2.5747]
[1735583716800,3.66,194.41,194.31,12.72460814]
[1735583716992,24.46619046,194.48,194.29,3.0793]
[1735583716993,3.66,194.45,194.34,12.72460814]
[1735583717406,2.5735,194.47,194.34,12.72460814]
[1735583717903,20.99350814,194.48,194.34,12.72460814]
[1735583717904,2.5737,194.46,194.34,12.72460814]
[1735583718199,20.99350814,194.48,194.34,12.72460814]
[1735583718400,14.20030814,194.48,194.44,2.5738]
[1735583718790,1.5049,194.52,194.37,12.72460814]
[1735583718992,30.05882017,194.53,194.4,12.72460814]
[1735583719294,12.72460814,194.52,194.4,16.38460814]
[1735583719595,12.72460814,194.52,194.4,3.66]
[1735583720004,12.72460814,194.52,194.38,3.0571]
[1735583720198,12.72460814,194.49,194.38,3.0571]
[1735583720399,12.72460814,194.46,194.22,7.7303]
[1735583720699,12.72460814,194.46,194.32,12.72460814]
[1735583721296,2.5741,194.43,194.37,2.5747]
[1735583721500,12.72460814,194.46,194.32,12.72460814]
[1735583721701,3.66,194.46,194.35,12.72460814]
[1735583722100,3.66,194.46,194.42,2.5741]
[1735583722397,3.66,194.46,194.35,20.34219803]
[1735583722597,1.4576,194.47,194.44,2.5738]
[1735583722903,1.5099,194.48,194.36,3.66]
[1735583723207,4.0834,194.48,194.42,2.574]
[1735583723503,4.0834,194.48,194.36,3.66]
[1735583724303,3.66,194.5,194.39,20.34219803]
[1735583724505,1.5639,194.52,194.39,20.34219803]
[1735583724705,1.5639,194.52,194.4,3.1763]
[1735583725203,1.5639,194.52,194.41,3.66]
[1735583726504,1.5639,194.52,194.48,2.5733]
[1735583727905,1.5639,194.52,194.41,3.66]
[1735583729009,1.5393,194.53,194.41,3.66]
[1735583729206,1.5393,194.53,194.49,2.5731]
[1735583729710,1.5393,194.53,194.4,8.4549]
[1735583729906,7.8425,194.55,194.5,2.573]
[1735583730104,1.61,194.55,194.42,20.34219803]
[1735583730309,1.4957,194.58,194.42,20.34219803]
[1735583730511,4.0678,194.58,194.42,20.34219803]
[1735583730804,1.4957,194.58,194.42,20.34219803]
[1735583731302,1.4957,194.58,194.45,20.34219803]
[1735583731509,1.4957,194.58,194.46,3.66]
[1735583731710,1.4957,194.58,194.55,2.5724]
[1735583732110,1.4957,194.58,194.46,3.66]
[1735583733109,5.2084,194.61,194.48,20.34219803]
[1735583733307,5.2084,194.61,194.49,3.0185]
[1735583733909,2.5722,194.57,194.52,2.5728]
[1735583734215,25.55059803,194.61,194.45,3.66]
[1735583735106,2.5719,194.59,194.54,2.5724]
[1735583735314,1.5484,194.61,194.47,20.34219803]
[1735583735702,2.5719,194.6,194.51,2.5729]
[1735583735911,3.66,194.62,194.47,20.34219803]
[1735583736313,3.66,194.62,194.48,3.66]
[1735583736511,1.4966,194.63,194.5,20.34219803]
[1735583736711,5.1566,194.63,194.5,20.34219803]
[1735583737413,2.5717,194.61,194.5,20.34219803]
[1735583737607,2.5717,194.61,194.5,23.44239803]
[1735583737908,32.17952017,194.66,194.61,2.5715]
[1735583738308,28.51952017,194.66,194.54,3.66]
[1735583738513,28.51952017,194.66,194.61,2.5716]
[1735583738514,31.09052017,194.66,194.61,2.5716]
[1735583738707,28.51952017,194.66,194.54,3.66]
[1735583739012,3.66,194.68,194.54,3.66]
[1735583739207,2.571,194.66,194.54,3.66]
[1735583739709,2.571,194.66,194.59,2.5718]
[1735583739915,3.66,194.67,194.59,2.5718]
[1735583740403,2.5713,194.64,194.54,3.66]
[1735583740606,24.00219803,194.67,194.56,2.5723]
[1735583740804,24.00219803,194.67,194.5,27.10239803]
[1735583741013,24.00219803,194.67,194.5,23.44239803]
[1735583741207,24.00219803,194.67,194.5,27.10239803]
[1735583741716,2.5715,194.62,194.5,27.10239803]
[1735583742616,2.5715,194.62,194.55,2.5723]
[1735583742815,24.00219803,194.67,194.5,23.44239803]
[1735583743021,20.34219803,194.64,194.5,3.1002]
[1735583743214,3.2186,194.63,194.51,2.5728]
[1735583744011,2.5722,194.58,194.51,2.5728]
[1735583744212,6.2322,194.58,194.52,2.5728]
[1735583744412,3.66,194.58,194.52,2.5728]
[1735583744710,6.2321,194.58,194.49,3.88839201]
[1735583745009,6.2321,194.58,194.52,2.5727]
[1735583745310,2.5724,194.55,194.49,3.88839201]
[1735583745512,12.70170858,194.57,194.44,12.70170858]
[1735583745712,15.77690858,194.54,194.41,12.70170858]
[1735583745913,2.5732,194.49,194.41,12.70170858]
[1735583746115,3.66,194.49,194.41,12.70170858]
[1735583746318,3.66,194.49,194.38,12.70170858]
[1735583746511,2.5737,194.46,194.4,2.5743]
[1735583746713,2.5737,194.46,194.38,12.70170858]
[1735583746913,4.1483,194.48,194.42,2.5741]
[1735583747410,1.5749,194.48,194.38,12.70170858]
[1735583747613,14.27660858,194.48,194.36,3.0815]
[1735583747817,14.27660858,194.48,194.35,12.70170858]
[1735583748014,2.5739,194.44,194.38,2.5746]
[1735583748316,14.27660858,194.48,194.35,12.70170858]
[1735583748518,2.5737,194.46,194.37,2.5747]
[1735583748711,14.27660858,194.48,194.35,12.70170858]
[1735583749110,2.574,194.44,194.38,2.5746]
[1735583749616,2.5738,194.45,194.41,2.5743]
[1735583749816,14.27660858,194.48,194.35,12.70170858]
[1735583750318,12.70170858,194.45,194.25,4.7754]
[1735583750519,1.4862,194.44,194.31,12.70170858]
[1735583750710,3.66,194.43,194.31,12.70170858]